bitfinex-derivatives/quotes_BTCF0:USTF0_20250505
["timestamp","ask_amount","ask_price","bid_price","bid_amount"]
[1746436385958,0.2114059,94600.0,94599.0,0.2430072]
[1746436386261,0.3614059,94600.0,94599.0,0.2430072]
[1746436386758,0.46710576,94600.0,94599.0,0.2430072]
[1746436386961,0.52830576,94600.0,94599.0,0.2430072]
[1746436387149,0.53030576,94600.0,94599.0,0.2430072]
[1746436388761,0.53130576,94600.0,94599.0,0.2430072]
[1746436391463,0.53130576,94600.0,94599.0,0.23308819]
[1746436395061,0.49830576,94600.0,94599.0,0.26558819]
[1746436397466,0.49830576,94600.0,94599.0,0.25566908]
[1746436404174,0.44830576,94600.0,94599.0,0.37566908]
[1746436405176,0.44830576,94600.0,94599.0,0.25566908]
[1746436407669,0.44830576,94600.0,94599.0,0.24574995]
[1746436408072,0.44830576,94600.0,94599.0,0.36574995]
[1746436409174,0.49830576,94600.0,94599.0,0.24574995]
[1746436413682,0.49830576,94600.0,94599.0,0.23583082]
[1746436417682,0.49830576,94600.0,94599.0,0.26673082]
[1746436419581,0.49830576,94600.0,94599.0,0.25681169]
[1746436419978,0.56242576,94600.0,94599.0,0.25681169]
[1746436420884,0.65068309,94600.0,94599.0,0.25681169]
[1746436422083,0.65068309,94600.0,94599.0,0.37681169]
[1746436422282,0.65068309,94600.0,94599.0,0.3948081]
[1746436423086,0.65068309,94600.0,94599.0,0.2748081]
[1746436424682,0.56242576,94600.0,94599.0,0.2748081]
[1746436426286,0.56242576,94600.0,94599.0,0.26488897]
[1746436428987,0.56242576,94600.0,94599.0,0.2423081]
[1746436440196,0.56242576,94600.0,94599.0,0.3623081]
[1746436443103,0.56242576,94600.0,94599.0,0.2423081]
[1746436444201,0.56242576,94600.0,94599.0,0.3623081]
[1746436448308,0.56242576,94600.0,94599.0,0.2423081]
[1746436448706,0.56451881,94600.0,94599.0,0.2423081]
[1746436449797,0.2114126,94598.0,94596.0,0.0528526]
[1746436450106,0.0303,94597.0,94596.0,0.2114148]
[1746436450295,0.0607,94597.0,94596.0,0.2114148]
[1746436450492,0.0607,94597.0,94596.0,0.2417148]
[1746436450707,0.06279305,94597.0,94596.0,0.2417148]
[1746436450910,0.27420785,94597.0,94596.0,0.28464872]
[1746436451904,0.27620785,94597.0,94596.0,0.28464872]
[1746436452110,0.27720785,94597.0,94596.0,0.40464872]
[1746436455112,0.27720785,94597.0,94596.0,0.28464872]
[1746436455301,0.27720785,94597.0,94596.0,0.31584872]
[1746436456112,0.27720785,94597.0,94596.0,0.43584872]
[1746436456303,0.34132785,94597.0,94596.0,0.43584872]
[1746436456605,0.42958518,94597.0,94596.0,0.43584872]
[1746436457108,0.42958518,94597.0,94596.0,0.31584872]
[1746436458511,0.39918518,94597.0,94596.0,0.31584872]
[1746436459109,0.39918518,94597.0,94596.0,0.43584872]
[1746436459710,0.31092785,94597.0,94596.0,0.43584872]
[1746436460214,0.31092785,94597.0,94596.0,0.31584872]
[1746436461205,0.31092785,94597.0,94596.0,0.43584872]
[1746436465215,0.36092785,94597.0,94596.0,0.43584872]
[1746436467720,0.60350013,94597.0,94596.0,0.43584872]
[1746436470324,0.60350013,94597.0,94596.0,0.31584872]
[1746436470622,0.36092785,94597.0,94596.0,0.31584872]
[1746436472133,0.36092785,94597.0,94596.0,0.43584872]
[1746436473835,0.44918518,94597.0,94596.0,0.43584872]
[1746436475137,0.44918518,94597.0,94596.0,0.31584872]
[1746436477137,0.44918518,94597.0,94596.0,0.43584872]
[1746436479138,0.44918518,94597.0,94596.0,0.31584872]
[1746436479431,0.36092785,94597.0,94596.0,0.31584872]
[1746436485135,0.29680785,94597.0,94596.0,0.31584872]
[1746436487147,0.29680785,94597.0,94596.0,0.43584872]
[1746436490145,0.29680785,94597.0,94596.0,0.31584872]
[1746436493349,0.32980785,94597.0,94596.0,0.31584872]
[1746436494647,0.39392785,94597.0,94596.0,0.31584872]
[1746436497750,0.48218518,94597.0,94596.0,0.31584872]
[1746436499451,0.44918518,94597.0,94596.0,0.31584872]
[1746436500356,0.36092785,94597.0,94596.0,0.31584872]
[1746436504049,0.36092785,94597.0,94596.0,0.43584872]
[1746436506245,0.36092785,94597.0,94596.0,0.31584872]
[1746436506443,0.39392785,94597.0,94596.0,0.31584872]
[1746436506650,0.42492785,94597.0,94596.0,0.31584872]
[1746436507155,0.37492785,94597.0,94596.0,0.31584872]
[1746436512255,0.37492785,94597.0,94595.0,0.00105713]
[1746436512256,0.4249372,94597.0,94578.0,0.3608]
[1746436512561,0.2114662,94573.0,94559.0,0.413674]
[1746436512745,0.42767925,94573.0,94572.0,0.21305458]
[1746436513248,0.53340146,94573.0,94572.0,0.36425458]
[1746436513449,0.59560146,94573.0,94572.0,0.36425458]
[1746436513652,0.59560146,94573.0,94572.0,0.15278608]
[1746436513850,0.59560146,94573.0,94572.0,0.12158608]
[1746436514249,0.59760146,94573.0,94572.0,0.12158608]
[1746436515152,0.08499305,94573.0,94572.0,0.33305458]
[1746436515357,0.00409305,94573.0,94572.0,0.36425458]
[1746436515643,0.00609305,94573.0,94572.0,0.36425458]
[1746436516043,0.0528555,94593.0,94592.0,0.2114215]
[1746436516243,0.428397,94593.0,94592.0,0.2114215]
[1746436516652,0.53413598,94593.0,94592.0,0.2114215]
[1746436517059,0.53413598,94593.0,94592.0,0.3314215]
[1746436517262,0.56933598,94593.0,94592.0,0.3314215]
[1746436517850,0.57033598,94593.0,94592.0,0.3324215]
[1746436521759,0.57033598,94593.0,94592.0,0.121]
[1746436522166,0.60233598,94593.0,94592.0,0.3324237]
[1746436528767,0.60233598,94593.0,94592.0,0.121]
[1746436529769,0.60233598,94593.0,94592.0,0.3324237]
[1746436532473,0.60233598,94593.0,94592.0,0.3629237]
[1746436533967,0.60233598,94593.0,94592.0,0.1515]
[1746436534175,0.60233598,94593.0,94592.0,0.001]
[1746436535878,0.60233598,94593.0,94592.0,0.2124237]
[1746436536374,0.53821598,94593.0,94592.0,0.2124237]
[1746436536568,0.57033598,94593.0,94592.0,0.2124237]
[1746436537062,0.57033598,94593.0,94592.0,0.2753237]
[1746436537263,0.57033598,94593.0,94592.0,0.3953237]
[1746436537974,0.50621598,94593.0,94592.0,0.3953237]
[1746436538177,0.57033598,94593.0,94592.0,0.3953237]
[1746436538469,0.103,94593.0,94592.0,0.3953237]
[1746436538775,0.003,94593.0,94592.0,0.3953237]
[1746436541165,0.103,94593.0,94592.0,0.3953237]
[1746436541560,0.3144215,94593.0,94592.0,0.3953237]
[1746436541872,0.47013812,94593.0,94592.0,0.1839]
[1746436542172,0.57013812,94593.0,94592.0,0.001]
[1746436542766,0.63253812,94593.0,94592.0,0.001]
[1746436543668,0.63253812,94593.0,94592.0,0.2124237]
[1746436550882,0.66575812,94593.0,94592.0,0.2124237]
[1746436551085,0.66575812,94593.0,94592.0,0.3950237]
[1746436553181,0.66575812,94593.0,94592.0,0.2750237]
[1746436555082,0.66575812,94593.0,94592.0,0.2443237]
[1746436557183,0.66575812,94593.0,94592.0,0.3643237]
[1746436557782,0.69755812,94593.0,94592.0,0.3976237]
[1746436557978,0.69755812,94593.0,94592.0,0.3657237]
[1746436558174,0.69755812,94593.0,94592.0,0.2457237]
[1746436559070,0.69755812,94593.0,94592.0,0.3657237]
[1746436559480,0.69755812,94593.0,94592.0,0.3965237]
[1746436561180,0.69755812,94593.0,94592.0,0.2765237]
[1746436561481,0.63343812,94593.0,94592.0,0.2765237]
[1746436561683,0.69755812,94593.0,94592.0,0.2765237]
[1746436561880,0.78632835,94593.0,94592.0,0.2765237]
[1746436562585,0.78632835,94593.0,94592.0,0.001]
[1746436563077,0.78632835,94593.0,94592.0,0.2124237]
[1746436563278,0.78632835,94593.0,94592.0,0.001]
[1746436563485,0.78632835,94593.0,94592.0,0.2124237]
[1746436565787,0.81892835,94593.0,94592.0,0.2124237]
[1746436568376,0.81892835,94593.0,94592.0,0.001]
[1746436568689,0.81892835,94593.0,94592.0,0.2124237]
[1746436570087,0.73015812,94593.0,94592.0,0.2124237]
[1746436570785,0.73015812,94593.0,94592.0,0.001]
[1746436571284,0.73015812,94593.0,94592.0,0.2124237]
[1746436573782,0.73015812,94593.0,94592.0,0.2445237]
[1746436578091,0.73015812,94593.0,94592.0,0.0331]
[1746436578594,0.73015812,94593.0,94592.0,0.2445237]
[1746436581389,0.56571812,94593.0,94592.0,0.2445237]
[1746436581691,0.66571812,94593.0,94592.0,0.2445237]
[1746436582194,0.66571812,94593.0,94592.0,0.3645237]
[1746436585089,0.75448835,94593.0,94592.0,0.3645237]
[1746436588400,0.75448835,94593.0,94592.0,0.2445237]
[1746436589101,0.75448835,94593.0,94592.0,0.1531]
[1746436589399,0.75448835,94593.0,94592.0,0.3645237]
[1746436589902,0.75448835,94593.0,94592.0,0.1531]
[1746436590100,0.78618835,94593.0,94592.0,0.2124237]
[1746436591903,0.69741812,94593.0,94592.0,0.2124237]
[1746436592905,0.63333812,94593.0,94592.0,0.2124237]
[1746436593110,0.69741812,94593.0,94592.0,0.2124237]
[1746436593504,0.69741812,94593.0,94592.0,0.001]
[1746436593505,0.66571812,94593.0,94592.0,0.001]
[1746436593702,1.05711812,94593.0,94592.0,0.001]
[1746436595416,0.99303812,94593.0,94592.0,0.001]
[1746436595719,0.2114282,94590.0,94589.0,0.20250931]
[1746436595921,0.2114282,94590.0,94589.0,0.23310931]
[1746436596413,0.31714482,94590.0,94589.0,0.0306]
[1746436596717,0.44582482,94590.0,94589.0,0.0306]
[1746436596917,0.41402482,94590.0,94589.0,0.0306]
[1746436597118,0.2114416,94584.0,94583.0,0.0311]
[1746436597313,0.3614416,94584.0,94583.0,0.0617]
[1746436597518,0.3614416,94584.0,94583.0,0.2731439]
[1746436597715,0.3604416,94584.0,94583.0,0.2731439]
[1746436597911,0.49766157,94584.0,94583.0,0.2731439]
[1746436598319,0.49766157,94584.0,94583.0,0.3931439]
[1746436598512,0.49866157,94584.0,94583.0,0.3931439]
[1746436598820,0.50951432,94584.0,94583.0,0.3931439]
[1746436599429,0.51151432,94584.0,94583.0,0.3941439]
[1746436601725,0.51151432,94584.0,94583.0,0.38422304]
[1746436602422,0.57559432,94584.0,94583.0,0.38422304]
[1746436604524,0.51151432,94584.0,94583.0,0.38422304]
[1746436604724,0.15871997,94584.0,94583.0,0.38422304]
[1746436604927,0.003,94584.0,94583.0,0.48995104]
[1746436605115,0.24259535,94593.0,94592.0,0.2114237]
[1746436605320,0.24259535,94593.0,94592.0,0.5722237]
[1746436605923,0.24259535,94593.0,94592.0,0.6355237]
[1746436606122,0.24259535,94593.0,94592.0,0.7555237]
[1746436606521,0.24559535,94593.0,94592.0,0.7575237]
[1746436607424,0.103,94593.0,94592.0,0.7575237]
[1746436607824,0.103,94593.0,94592.0,0.74760474]
[1746436608526,0.103,94593.0,94592.0,0.85332074]
[1746436608732,0.003,94593.0,94592.0,0.85332074]
[1746436618439,0.003,94593.0,94592.0,0.74760474]
[1746436618635,0.003,94593.0,94592.0,0.85332074]
[1746436619033,0.003,94593.0,94592.0,0.74760474]
[1746436620139,1e-07,94593.0,94592.0,0.85332074]
[1746436625451,1e-07,94593.0,94592.0,1.26302074]
[1746436627743,1e-07,94593.0,94592.0,1.15730474]
[1746436627946,1e-07,94593.0,94592.0,1.26302074]
[1746436628651,1e-07,94593.0,94592.0,1.29362074]
[1746436634243,1e-07,94593.0,94592.0,1.65442074]
[1746436641045,1e-07,94593.0,94592.0,1.54870474]
[1746436641647,1e-07,94593.0,94592.0,1.65442074]
[1746436643155,1e-07,94593.0,94592.0,1.54870474]
[1746436643850,0.00783131,94608.0,94607.0,0.2113902]
[1746436644049,0.0308,94611.0,94610.0,0.2113835]
[1746436644250,0.0308,94611.0,94610.0,0.3313835]
[1746436644952,0.0308,94611.0,94610.0,0.3620835]
[1746436645156,0.0318,94611.0,94610.0,0.3650835]
[1746436645654,0.0328,94611.0,94610.0,0.3660835]
[1746436647056,0.04063768,94611.0,94610.0,0.3660835]
[1746436647550,0.07363768,94611.0,94610.0,0.3660835]
[1746436647951,0.04283768,94611.0,94610.0,0.3660835]
[1746436649058,0.04283768,94611.0,94610.0,0.7757835]
[1746436649759,0.04283768,94611.0,94610.0,1.1365835]
[1746436649960,0.00158646,94613.0,94612.0,0.2113791]
[1746436650662,0.00158646,94613.0,94612.0,0.2439791]
[1746436651283,0.00358646,94613.0,94612.0,0.7287791]
[1746436653061,0.00358646,94613.0,94612.0,0.3679791]
[1746436653358,0.00358646,94613.0,94612.0,0.7287791]
[1746436654659,0.0114924,94613.0,94612.0,0.7287791]
[1746436654859,0.0114924,94613.0,94612.0,1.1384791]
[1746436656861,0.00358646,94613.0,94612.0,1.1384791]
[1746436657062,0.06908646,94613.0,94612.0,1.1384791]
[1746436659463,0.06908646,94613.0,94612.0,1.1713791]
[1746436682384,0.03658646,94613.0,94612.0,1.1713791]
[1746436682682,0.00358646,94613.0,94612.0,1.1713791]
[1746436690191,0.03468646,94613.0,94612.0,1.1713791]
[1746436691391,0.0331,94613.0,94612.0,1.1713791]
[1746436692191,0.0331,94613.0,94612.0,0.6250791]
[1746436692192,0.7501728,94613.0,94612.0,0.6250791]
[1746436692393,0.5643728,94613.0,94612.0,0.6250791]
[1746436695197,3.2643728,94613.0,94612.0,0.6250791]
[1746436695798,3.2643728,94613.0,94612.0,0.2153791]
[1746436696309,3.2001728,94613.0,94612.0,0.2153791]
[1746436696690,3.2327728,94613.0,94612.0,0.2153791]
[1746436697097,3.1270768,94613.0,94612.0,0.2153791]
[1746436697695,2.8157,94613.0,94612.0,0.2153791]
[1746436698088,2.7657,94613.0,94612.0,0.2153791]
[1746436698289,2.7657,94613.0,94612.0,0.4001791]
[1746436701896,2.9770768,94613.0,94612.0,0.4001791]
[1746436703998,2.7657,94613.0,94612.0,0.4001791]
[1746436704299,2.9770768,94613.0,94612.0,0.4001791]
[1746436718609,2.702,94613.0,94612.0,0.4001791]
[1746436724409,2.702,94613.0,94612.0,0.7609791]
[1746436734516,2.702,94613.0,94612.0,0.4001791]
[1746436734721,2.702,94613.0,94612.0,0.7609791]
[1746436735523,2.702,94613.0,94612.0,0.4001791]
[1746436735822,2.702,94613.0,94612.0,0.7609791]
[1746436743029,2.702,94613.0,94612.0,0.7510622]
[1746436749133,2.702,94613.0,94612.0,0.7411453]
[1746436749324,2.702,94613.0,94612.0,0.3803453]
[1746436749631,2.702,94613.0,94612.0,0.7411453]
[1746436755037,2.702,94613.0,94612.0,0.73122857]
[1746436756239,2.702,94613.0,94612.0,0.37042857]
[1746436756437,2.702,94613.0,94612.0,0.73122857]
[1746436761146,2.702,94613.0,94612.0,0.72131184]
[1746436778256,2.78795805,94613.0,94612.0,0.72131184]
[1746436786861,2.702,94613.0,94612.0,0.72131184]
[1746436792066,2.7333,94613.0,94612.0,0.72131184]
[1746436795373,2.81925805,94613.0,94612.0,0.72131184]
[1746436797568,2.7333,94613.0,94612.0,0.72131184]
[1746436806187,2.7333,94613.0,94612.0,0.71139515]
[1746436819200,2.81925805,94613.0,94612.0,0.71139515]
[1746436824503,2.7333,94613.0,94612.0,0.71139515]
[1746436839315,2.7333,94613.0,94612.0,0.35059515]
[1746436839526,2.7333,94613.0,94612.0,0.71139515]
[1746436840013,2.81925805,94613.0,94612.0,0.71139515]
[1746436847322,2.7333,94613.0,94612.0,0.71139515]
[1746436850318,2.97586693,94613.0,94612.0,0.71139515]
[1746436853321,2.7333,94613.0,94612.0,0.71139515]
[1746436856922,2.81925805,94613.0,94612.0,0.71139515]
[1746436858225,2.78795805,94613.0,94612.0,0.71139515]
[1746436862125,2.78795805,94613.0,94612.0,1.07219515]
[1746436862920,2.702,94613.0,94612.0,1.07219515]
[1746436871945,2.702,94613.0,94612.0,1.48189515]
[1746436883160,2.702,94613.0,94612.0,0.76029515]
[1746436883360,2.702,94613.0,94612.0,1.48189515]
[1746436889866,2.5936506,94613.0,94612.0,1.48189515]
[1746436894273,2.53125162,94613.0,94612.0,1.48189515]
[1746436912593,2.56255162,94613.0,94612.0,1.48189515]
[1746436926425,2.53125162,94613.0,94612.0,1.48189515]
[1746436927427,2.46745162,94613.0,94612.0,1.48189515]
[1746436930831,2.46745162,94613.0,94612.0,0.76029515]
[1746436931032,2.46745162,94613.0,94612.0,1.48189515]
[1746436942940,2.46745162,94613.0,94612.0,1.54593515]
[1746436951140,2.40962492,94613.0,94612.0,1.54593515]
[1746436951344,2.37085872,94613.0,94612.0,1.54593515]
[1746436951538,2.31699572,94613.0,94612.0,1.54593515]
[1746436951938,0.0015,94625.0,94612.0,1.38414]
[1746436952143,0.0015,94660.0,94637.0,0.2113232]
[1746436952144,0.1646,94638.0,94637.0,0.2113232]
[1746436952440,0.1646,94638.0,94637.0,0.5721232]
[1746436952441,0.0646,94638.0,94637.0,0.5721232]
[1746436952639,0.0317,94638.0,94637.0,0.5721232]
[1746436952840,0.20141778,94639.0,94638.0,0.211321]
[1746436953143,0.20141778,94639.0,94638.0,0.241821]
[1746436954134,0.20141778,94639.0,94638.0,0.361821]
[1746436954745,0.26952483,94658.0,94649.0,0.0528238]
[1746436954950,0.0315,94655.0,94654.0,0.2112853]
[1746436955156,0.0315,94655.0,94654.0,0.58274024]
[1746436955345,0.0631,94655.0,94654.0,0.58274024]
[1746436956152,0.0951,94655.0,94654.0,0.70274024]
[1746436956545,0.0971,94655.0,94654.0,0.70374024]
[1746436956744,0.1041,94655.0,94654.0,0.70374024]
[1746436958441,0.0721,94655.0,94654.0,0.70374024]
[1746436958646,0.0015,94660.0,94659.0,0.2112741]
[1746436959354,0.0015,94660.0,94659.0,0.3640741]
[1746436959754,0.05,94678.0,94659.0,0.1528]
[1746436960051,0.05,94678.0,94677.0,0.2112339]
[1746436960442,0.41358334,94678.0,94677.0,0.2112339]
[1746436960653,0.11358334,94678.0,94677.0,0.2112339]
[1746436961157,0.23358334,94678.0,94677.0,0.2112339]
[1746436961355,0.23658334,94678.0,94677.0,0.2112339]
[1746436961557,0.24258334,94678.0,94677.0,0.2122339]
[1746436961960,0.23958334,94678.0,94677.0,0.2122339]
[1746436962257,0.24458334,94678.0,94677.0,0.2122339]
[1746436966150,0.13896334,94678.0,94677.0,0.2122339]
[1746436970060,0.14806334,94678.0,94677.0,0.2122339]
[1746436978065,0.14806334,94678.0,94677.0,0.5730339]
[1746436978365,0.14806334,94678.0,94677.0,0.6048339]
[1746436982470,0.14806334,94678.0,94677.0,0.6371339]
[1746436982666,0.14806334,94678.0,94677.0,0.6678339]
[1746436985271,0.13896334,94678.0,94677.0,0.6678339]
[1746436990967,0.24458334,94678.0,94677.0,0.6678339]
[1746436995281,0.13896334,94678.0,94677.0,0.6678339]
[1746436995471,0.24458334,94678.0,94677.0,0.6678339]
[1746436995882,0.45581504,94678.0,94677.0,0.6678339]
[1746436996080,0.35019504,94678.0,94677.0,0.6678339]
[1746436996977,0.43531019,94678.0,94677.0,0.6678339]
[1746437003785,0.35019504,94678.0,94677.0,0.6678339]
[1746437008786,0.43531019,94678.0,94677.0,0.6678339]
[1746437008984,0.43531019,94678.0,94677.0,0.3070339]
[1746437009183,0.43531019,94678.0,94677.0,0.6678339]
[1746437009882,0.43531019,94678.0,94677.0,0.3070339]
[1746437010089,0.43531019,94678.0,94677.0,0.6678339]
[1746437012779,0.35019504,94678.0,94677.0,0.6678339]
[1746437019992,0.53319134,94678.0,94677.0,0.6678339]
[1746437027201,0.35019504,94678.0,94677.0,0.6678339]
[1746437028003,0.35019504,94678.0,94677.0,0.65544582]
[1746437030396,0.35019504,94678.0,94677.0,0.29464582]
[1746437030602,0.35019504,94678.0,94677.0,0.65544582]
[1746437031000,0.43531019,94678.0,94677.0,0.65544582]
[1746437032201,0.43531019,94678.0,94677.0,0.29464582]
[1746437032393,0.43531019,94678.0,94677.0,0.65544582]
[1746437033903,0.53319134,94678.0,94677.0,0.65544582]
[1746437034398,0.32195964,94678.0,94677.0,0.65544582]
[1746437034604,0.53319134,94678.0,94677.0,0.65544582]
[1746437034802,0.32195964,94678.0,94677.0,0.65544582]
[1746437035003,0.53319134,94678.0,94677.0,0.65544582]
[1746437035399,0.32195964,94678.0,94677.0,0.65544582]
[1746437036104,0.20195964,94678.0,94677.0,0.65544582]
[1746437036403,0.10407849,94678.0,94677.0,0.65544582]
[1746437039295,0.20195964,94678.0,94677.0,0.65544582]
[1746437042705,0.01896334,94678.0,94677.0,0.65544582]
[1746437046306,0.01996334,94678.0,94677.0,0.65644582]
[1746437047111,0.13996334,94678.0,94677.0,0.65644582]
[1746437047310,0.13396334,94678.0,94677.0,0.65544582]
[1746437047509,0.13996334,94678.0,94677.0,0.65644582]
[1746437049009,0.22507849,94678.0,94677.0,0.65644582]
[1746437051095,0.10507849,94678.0,94677.0,0.65644582]
[1746437052010,0.20295964,94678.0,94677.0,0.65644582]
[1746437054310,0.32295964,94678.0,94677.0,0.65644582]
[1746437055118,0.20295964,94678.0,94677.0,0.65644582]
[1746437056107,0.32295964,94678.0,94677.0,0.65644582]
[1746437057013,0.13996334,94678.0,94677.0,0.65644582]
[1746437060517,0.22507849,94678.0,94677.0,0.65644582]
[1746437062518,0.22507849,94678.0,94677.0,0.29564582]
[1746437062719,0.22507849,94678.0,94677.0,0.65644582]
[1746437063121,0.10507849,94678.0,94677.0,0.65644582]
[1746437064122,0.20295964,94678.0,94677.0,0.65644582]
[1746437064323,0.32295964,94678.0,94677.0,0.65644582]
[1746437067926,0.32295964,94678.0,94677.0,0.29564582]
[1746437068128,0.32295964,94678.0,94677.0,0.65644582]
[1746437069120,0.20295964,94678.0,94677.0,0.65644582]
[1746437071137,0.32295964,94678.0,94677.0,0.65644582]
[1746437073234,0.20295964,94678.0,94677.0,0.65644582]
[1746437073725,0.01996334,94678.0,94677.0,0.65644582]
[1746437076443,0.012,94678.0,94677.0,0.65644582]
[1746437077541,0.3083635,94678.0,94677.0,0.65644582]
[1746437088352,0.4913598,94678.0,94677.0,0.65644582]
[1746437094758,0.3083635,94678.0,94677.0,0.65644582]
[1746437095258,0.3083635,94678.0,94677.0,0.77644582]
[1746437101256,0.3083635,94678.0,94677.0,0.65644582]
[1746437110170,0.3083635,94678.0,94677.0,0.77644582]
[1746437110360,0.39347865,94678.0,94677.0,0.77644582]
[1746437110561,0.39347865,94678.0,94677.0,1.13724582]
[1746437112169,0.39347865,94678.0,94677.0,1.01724582]
[1746437117376,0.3083635,94678.0,94677.0,1.01724582]
[1746437123577,0.4913598,94678.0,94677.0,1.01724582]
[1746437126581,0.1949963,94678.0,94677.0,1.01724582]
[1746437129578,0.09711515,94678.0,94677.0,1.01724582]
[1746437131492,0.09711515,94678.0,94677.0,0.29564582]
[1746437131675,0.09711515,94678.0,94677.0,1.01724582]
[1746437133583,0.29643263,94688.0,94685.0,0.2112161]
[1746437133774,0.29643263,94688.0,94685.0,0.5720161]
[1746437134083,0.29643263,94688.0,94685.0,0.7705]
[1746437134281,0.29643263,94688.0,94687.0,0.2112116]
[1746437134678,0.23684863,94688.0,94687.0,0.2112116]
[1746437135074,0.23684863,94688.0,94687.0,0.3312116]
[1746437136676,0.23784863,94688.0,94687.0,0.3332116]
[1746437137183,0.0015,94695.0,94694.0,0.211196]
[1746437137486,0.1,94700.0,94699.0,0.2111849]
[1746437137685,0.1,94700.0,94699.0,0.5719849]
[1746437138386,0.05288,94714.0,94713.0,0.2111536]
[1746437138578,0.15288,94714.0,94713.0,0.5719536]
[1746437139178,0.27288,94714.0,94713.0,0.6355536]
[1746437139985,0.27688,94714.0,94713.0,0.6365536]
[1746437140987,0.28388,94714.0,94713.0,0.6375536]
[1746437141792,0.28388,94714.0,94713.0,0.64831094]
[1746437142180,0.47049945,94714.0,94713.0,0.64831094]
[1746437145391,0.3726183,94714.0,94713.0,0.64831094]
[1746437148290,0.28388,94714.0,94713.0,0.64831094]
[1746437149083,0.18388,94714.0,94713.0,0.64831094]
[1746437149692,0.28388,94714.0,94713.0,0.64831094]
[1746437149881,0.32528,94714.0,94713.0,0.64831094]
[1746437150986,0.2724,94714.0,94713.0,0.64831094]
[1746437152685,0.2704,94714.0,94713.0,0.64731094]
[1746437152993,0.2674,94714.0,94713.0,0.64631094]
[1746437153193,0.2654,94714.0,94713.0,0.64731094]
[1746437153601,0.3541383,94714.0,94713.0,0.64731094]
[1746437153784,0.3511383,94714.0,94713.0,0.64731094]
[1746437155996,0.3420383,94714.0,94713.0,0.64731094]
[1746437158899,0.3420383,94714.0,94713.0,0.28651094]
[1746437159094,0.3420383,94714.0,94713.0,0.64731094]
[1746437162403,0.52190402,94714.0,94713.0,0.64731094]
[1746437163298,1.18863543,94714.0,94713.0,0.0315]
[1746437163487,1.34421699,94714.0,94713.0,0.001]
[1746437163691,1.34421699,94714.0,94713.0,0.2121536]
[1746437164403,1.09421699,94714.0,94713.0,0.2121536]
[1746437169406,0.263986,94699.0,94694.0,0.0527989]
[1746437169696,0.2202871,94698.0,94697.0,0.2416893]
[1746437169898,0.2859871,94698.0,94697.0,0.2416893]
[1746437170104,0.49716866,94698.0,94697.0,0.2416893]
[1746437170301,0.61716866,94698.0,94697.0,0.2416893]
[1746437171094,0.51156866,94698.0,94697.0,0.2416893]
[1746437171903,0.51256866,94698.0,94697.0,0.2466893]
[1746437172304,0.51256866,94698.0,94697.0,0.2486893]
[1746437178007,0.60130696,94698.0,94697.0,0.2486893]
[1746437178408,0.60130696,94698.0,94697.0,0.2806893]
[1746437178799,0.60130696,94698.0,94697.0,0.3110893]
[1746437180209,0.56800696,94698.0,94697.0,0.3110893]
[1746437183407,0.55890696,94698.0,94697.0,0.3110893]
[1746437185507,0.47016866,94698.0,94697.0,0.3110893]
[1746437186109,0.22658156,94698.0,94697.0,0.3110893]
[1746437186306,0.121,94698.0,94697.0,0.3110893]
[1746437186612,0.3321871,94698.0,94697.0,0.3110893]
[1746437188000,0.3321871,94698.0,94697.0,0.6718893]
[1746437188712,0.121,94698.0,94697.0,0.6718893]
[1746437189411,0.3321871,94698.0,94697.0,0.6718893]
[1746437189613,0.121,94698.0,94697.0,0.6718893]
[1746437192214,0.3321871,94698.0,94697.0,0.6718893]
[1746437194618,0.121,94698.0,94697.0,0.6718893]
[1746437200723,0.20965323,94698.0,94697.0,0.6718893]
[1746437208431,0.121,94698.0,94697.0,0.6718893]
[1746437209231,0.121,94698.0,94697.0,0.3110893]
[1746437209421,0.121,94698.0,94697.0,0.6718893]
[1746437209830,0.121,94698.0,94697.0,0.3110893]
[1746437210033,0.121,94698.0,94697.0,0.6718893]
[1746437211030,0.4321871,94698.0,94697.0,0.6718893]
[1746437211230,0.4720871,94698.0,94697.0,0.6718893]
[1746437214130,0.4720871,94698.0,94697.0,0.6094893]
[1746437214930,0.6616905,94698.0,94697.0,0.6094893]
[1746437217731,0.6616905,94698.0,94697.0,0.6422893]
[1746437222837,0.6616905,94698.0,94697.0,0.2814893]
[1746437223037,0.6525905,94698.0,94697.0,0.2814893]
[1746437223839,0.4629871,94698.0,94697.0,0.2814893]
[1746437224540,0.4321871,94698.0,94697.0,0.2814893]
[1746437231742,0.6217905,94698.0,94697.0,0.2814893]
[1746437232936,0.4321871,94698.0,94697.0,0.2814893]
[1746437233336,0.4957471,94698.0,94697.0,0.2814893]
[1746437235235,0.6876271,94698.0,94697.0,0.2814893]
[1746437239150,0.5854648,94698.0,94697.0,0.2814893]
[1746437241554,0.4957471,94698.0,94697.0,0.2814893]
[1746437244654,0.5854648,94698.0,94697.0,0.2814893]
[1746437250858,0.4957471,94698.0,94697.0,0.2814893]
[1746437253362,0.6876271,94698.0,94697.0,0.2814893]
[1746437259163,0.4957471,94698.0,94697.0,0.2814893]
[1746437263968,0.8565471,94698.0,94697.0,0.2814893]
[1746437264168,0.8972471,94698.0,94697.0,0.2814893]
[1746437264669,0.8881471,94698.0,94697.0,0.2814893]
[1746437264965,0.8565471,94698.0,94697.0,0.2814893]
[1746437265164,0.9065471,94698.0,94697.0,0.2814893]
[1746437269870,0.9962648,94698.0,94697.0,0.2814893]
[1746437270770,0.6354648,94698.0,94697.0,0.2814893]
[1746437274774,0.6760648,94698.0,94697.0,0.2814893]
[1746437275164,0.6260648,94698.0,94697.0,0.2814893]
[1746437275364,0.6169648,94698.0,94697.0,0.2814893]
[1746437276374,0.5272471,94698.0,94697.0,0.2814893]
[1746437278973,0.4957471,94698.0,94697.0,0.2814893]
[1746437280173,0.5457471,94698.0,94697.0,0.2814893]
[1746437281775,0.6354648,94698.0,94697.0,0.2814893]
[1746437287283,0.6354648,94698.0,94697.0,0.3128893]
[1746437290579,0.5457471,94698.0,94697.0,0.3128893]
[1746437297103,0.7376271,94698.0,94697.0,0.3128893]
[1746437304303,0.6354648,94698.0,94697.0,0.3128893]
[1746437307100,0.5457471,94698.0,94697.0,0.3128893]
[1746437307304,0.4957471,94698.0,94697.0,0.3128893]
[1746437310509,0.264039,94680.0,94672.0,0.3608]
[1746437310708,0.427519,94680.0,94679.0,0.2640364]
[1746437311205,0.547519,94680.0,94679.0,0.2640364]
[1746437311711,0.548519,94680.0,94679.0,0.2640364]
[1746437313110,0.547519,94680.0,94679.0,0.2640364]
[1746437313313,0.548519,94680.0,94679.0,0.2670364]
[1746437313501,0.548519,94680.0,94679.0,0.2680364]
[1746437314110,0.548519,94680.0,94679.0,0.3332364]
[1746437314312,0.548519,94680.0,94679.0,0.3302364]
[1746437315211,0.548519,94680.0,94679.0,0.0662]
[1746437315507,0.2112406,94674.0,94669.0,0.2112516]